[Event "*** Titled Tuesday Blitz"]
[Site "Chess.com"]
[Date "2020.12.29"]
[Round "5"]
[White "Meri-Arabidze"]
[Black "TristanCalistri"]
[Result "1-0"]
[WhiteElo "2635"]
[BlackElo "2310"]
[TimeControl "180+1"]
[EndTime "10:54:44 PST"]
[Termination "Meri-Arabidze won on time"]

1. Nf3 {[%clk 0:03:00.9]} 1... Nf6 {[%clk 0:02:59.4]} 2. c4 {[%clk 0:03:00.4]}
2... b6 {[%clk 0:02:59.3]} 3. d4 {[%clk 0:02:59.7]} 3... Bb7 {[%clk 0:02:58.4]}
4. Nc3 {[%clk 0:02:59.9]} 4... e6 {[%clk 0:02:58.3]} 5. e3 {[%clk 0:02:58.5]}
5... d5 {[%clk 0:02:57.9]} 6. cxd5 {[%clk 0:02:56.9]} 6... exd5 {[%clk
0:02:57.8]} 7. Bd3 {[%clk 0:02:57.2]} 7... Bd6 {[%clk 0:02:57.4]} 8. O-O {[%clk
0:02:57.8]} 8... O-O {[%clk 0:02:57.5]} 9. a3 {[%clk 0:02:57.2]} 9... Nbd7
{[%clk 0:02:57.3]} 10. b4 {[%clk 0:02:57.4]} 10... a6 {[%clk 0:02:53.9]} 11. Qb3
{[%clk 0:02:57.2]} 11... Re8 {[%clk 0:02:36.1]} 12. b5 {[%clk 0:02:55.8]} 12...
axb5 {[%clk 0:02:17.3]} 13. Nxb5 {[%clk 0:02:55.2]} 13... Bf8 {[%clk 0:02:17.9]}
14. a4 {[%clk 0:02:54.4]} 14... c5 {[%clk 0:02:13.5]} 15. Bf5 {[%clk 0:02:46.7]}
15... Ne4 {[%clk 0:02:00.1]} 16. Ba3 {[%clk 0:02:24.2]} 16... Ndf6 {[%clk
0:01:59.5]} 17. dxc5 {[%clk 0:02:14.3]} 17... bxc5 {[%clk 0:01:55.4]} 18. Rfd1
{[%clk 0:02:13]} 18... Qa5 {[%clk 0:01:43.7]} 19. Bb2 {[%clk 0:02:12]} 19...
Rad8 {[%clk 0:01:39]} 20. Be5 {[%clk 0:01:54.9]} 20... Rc8 {[%clk 0:00:47.9]}
21. Bxc8 {[%clk 0:01:52.2]} 21... Bxc8 {[%clk 0:00:44.6]} 22. Bc7 {[%clk
0:01:42.4]} 22... Qa8 {[%clk 0:00:39.8]} 23. Bf4 {[%clk 0:01:41.2]} 23... Qa5
{[%clk 0:00:33.5]} 24. Nc7 {[%clk 0:01:40.2]} 24... Rd8 {[%clk 0:00:30]} 25. h3
{[%clk 0:01:07.1]} 25... h6 {[%clk 0:00:28.5]} 26. Nb5 {[%clk 0:01:06.5]} 26...
Be6 {[%clk 0:00:26.4]} 27. Bc7 {[%clk 0:01:05.6]} 27... Qa8 {[%clk 0:00:25.3]}
28. Bxd8 {[%clk 0:01:06]} 28... Qxd8 {[%clk 0:00:26.2]} 29. Qb2 {[%clk
0:01:02.1]} 29... Qc8 {[%clk 0:00:20.9]} 30. Qe5 {[%clk 0:00:52.3]} 30... Bxh3
{[%clk 0:00:17.9]} 31. Qh2 {[%clk 0:00:32.6]} 31... Bg4 {[%clk 0:00:15.5]} 32.
Ne5 {[%clk 0:00:28.4]} 32... Qf5 {[%clk 0:00:14]} 33. Nxg4 {[%clk 0:00:26.4]}
33... Nxg4 {[%clk 0:00:13.9]} 34. Qf4 {[%clk 0:00:26.6]} 34... Qh5 {[%clk
0:00:13.8]} 35. f3 {[%clk 0:00:19.7]} 35... Nef2 {[%clk 0:00:01.3]} 36. fxg4
{[%clk 0:00:19.8]} 1-0

[Event "*** Titled Tuesday Blitz"]
[Site "Chess.com"]
[Date "2020.12.29"]
[Round "5"]
[White "arna"]
[Black "CM_rui"]
[Result "0-1"]
[WhiteElo "2131"]
[BlackElo "2349"]
[TimeControl "180+1"]
[EndTime "10:54:44 PST"]
[Termination "CM_rui won on time"]

1. e4 {[%clk 0:03:00.9]} 1... e5 {[%clk 0:02:57.3]} 2. Nf3 {[%clk 0:03:01.2]}
2... Nc6 {[%clk 0:02:57.4]} 3. d4 {[%clk 0:03:01.7]} 3... exd4 {[%clk
0:02:58.3]} 4. Bc4 {[%clk 0:03:01.7]} 4... Nf6 {[%clk 0:02:56.6]} 5. e5 {[%clk
0:03:01.8]} 5... d5 {[%clk 0:02:56.8]} 6. Bb5 {[%clk 0:03:02.3]} 6... Ne4 {[%clk
0:02:57.4]} 7. Nxd4 {[%clk 0:03:02.7]} 7... Bd7 {[%clk 0:02:58]} 8. Bxc6 {[%clk
0:03:03.2]} 8... bxc6 {[%clk 0:02:58.9]} 9. O-O {[%clk 0:03:03.8]} 9... Bc5
{[%clk 0:02:57.8]} 10. Be3 {[%clk 0:03:04.1]} 10... O-O {[%clk 0:02:48.7]} 11.
f3 {[%clk 0:03:01.6]} 11... Ng5 {[%clk 0:02:44.2]} 12. Nc3 {[%clk 0:02:58.9]}
12... a5 {[%clk 0:02:37.5]} 13. Qd2 {[%clk 0:02:38.2]} 13... Ne6 {[%clk
0:02:29]} 14. Nxe6 {[%clk 0:02:37.9]} 14... Bxe3+ {[%clk 0:02:28.1]} 15. Qxe3
{[%clk 0:02:38.8]} 15... Bxe6 {[%clk 0:02:25.6]} 16. Qd4 {[%clk 0:02:30.8]}
16... Qe7 {[%clk 0:02:21.4]} 17. Na4 {[%clk 0:02:26.4]} 17... Rab8 {[%clk
0:02:18.8]} 18. a3 {[%clk 0:02:23]} 18... Rb5 {[%clk 0:02:09.6]} 19. c4 {[%clk
0:01:40.1]} 19... dxc4 {[%clk 0:01:46.7]} 20. Nc3 {[%clk 0:01:11.7]} 20... Rb3
{[%clk 0:01:18.5]} 21. Rad1 {[%clk 0:01:01.6]} 21... Rxb2 {[%clk 0:01:03.2]} 22.
Nd5 {[%clk 0:00:51]} 22... Qxa3 {[%clk 0:01:00.5]} 23. Nxc7 {[%clk 0:00:21.5]}
23... Qa2 {[%clk 0:00:48.6]} 24. Kh1 {[%clk 0:00:05.4]} 24... Rxg2 {[%clk
0:00:45]} 25. Qh4 {[%clk 0:00:06]} 25... c3 {[%clk 0:00:28]} 26. Nxe6 {[%clk
0:00:03.8]} 26... fxe6 {[%clk 0:00:28.9]} 27. Rg1 {[%clk 0:00:03.6]} 27... Qe2
{[%clk 0:00:14.7]} 28. Rde1 {[%clk 0:00:02.5]} 28... Rxg1+ {[%clk 0:00:14.3]}
29. Rxg1 {[%clk 0:00:02]} 29... Qxf3+ {[%clk 0:00:14.4]} 30. Rg2 {[%clk
0:00:02.7]} 30... c2 {[%clk 0:00:12.8]} 31. Qg5 {[%clk 0:00:01.4]} 31... Qf1+
{[%clk 0:00:08.3]} 32. Rg1 {[%clk 0:00:01.5]} 32... Qf3+ {[%clk 0:00:07]} 33.
Rg2 {[%clk 0:00:01.9]} 33... g6 {[%clk 0:00:06.7]} 0-1

[Event "*** Titled Tuesday Blitz"]
[Site "Chess.com"]
[Date "2020.12.29"]
[Round "5"]
[White "HeadShotRomanTest"]
[Black "Vamostodorecto"]
[Result "0-1"]
[WhiteElo "2184"]
[BlackElo "2424"]
[TimeControl "180+1"]
[EndTime "10:54:46 PST"]
[Termination "Vamostodorecto won by resignation"]

1. e4 {[%clk 0:02:46.6]} 1... e5 {[%clk 0:02:57.4]} 2. Nf3 {[%clk 0:02:46.5]}
2... Nc6 {[%clk 0:02:58.1]} 3. d4 {[%clk 0:02:46.5]} 3... exd4 {[%clk 0:02:59]}
4. Bc4 {[%clk 0:02:46.3]} 4... Nf6 {[%clk 0:02:59.6]} 5. e5 {[%clk 0:02:46.3]}
5... d5 {[%clk 0:02:58.6]} 6. Bb5 {[%clk 0:02:46.3]} 6... Ne4 {[%clk 0:02:59.3]}
7. Nxd4 {[%clk 0:02:46.4]} 7... Bd7 {[%clk 0:02:57.9]} 8. Bxc6 {[%clk
0:02:43.8]} 8... bxc6 {[%clk 0:02:58.8]} 9. O-O {[%clk 0:02:43.8]} 9... Bc5
{[%clk 0:02:46.8]} 10. f3 {[%clk 0:02:44.1]} 10... Ng5 {[%clk 0:02:45.7]} 11. f4
{[%clk 0:02:44.5]} 11... Ne4 {[%clk 0:02:45.2]} 12. Be3 {[%clk 0:02:45]} 12...
Bb6 {[%clk 0:02:38.7]} 13. Nd2 {[%clk 0:02:44.5]} 13... Nxd2 {[%clk 0:02:38.3]}
14. Qxd2 {[%clk 0:02:45.4]} 14... c5 {[%clk 0:02:38.6]} 15. Nf3 {[%clk 0:02:45]}
15... d4 {[%clk 0:02:39.3]} 16. Bf2 {[%clk 0:02:45.3]} 16... Bc6 {[%clk
0:02:34.8]} 17. Bh4 {[%clk 0:02:44.4]} 17... Qd7 {[%clk 0:02:34.5]} 18. Rae1
{[%clk 0:02:36.6]} 18... Qf5 {[%clk 0:02:17.1]} 19. b3 {[%clk 0:02:20.2]} 19...
O-O {[%clk 0:02:15.2]} 20. a4 {[%clk 0:02:20.3]} 20... a5 {[%clk 0:02:08.1]} 21.
h3 {[%clk 0:02:09.4]} 21... h6 {[%clk 0:01:56.9]} 22. g4 {[%clk 0:02:05.4]}
22... Qd7 {[%clk 0:01:56.8]} 23. f5 {[%clk 0:01:56.8]} 23... Qd5 {[%clk
0:01:55]} 24. f6 {[%clk 0:01:51.5]} 24... c4 {[%clk 0:01:39.4]} 25. fxg7 {[%clk
0:01:31.4]} 25... Kxg7 {[%clk 0:01:36.5]} 26. Bf6+ {[%clk 0:01:27.7]} 26... Kh7
{[%clk 0:01:36.8]} 27. Qf4 {[%clk 0:01:24.5]} 27... Rg8 {[%clk 0:01:33.6]} 28.
Qf5+ {[%clk 0:01:23.6]} 28... Rg6 {[%clk 0:01:33.4]} 29. h4 {[%clk 0:01:03.3]}
29... Bd7 {[%clk 0:01:32]} 30. bxc4 {[%clk 0:00:46.1]} 30... Bxf5 {[%clk
0:01:17.2]} 31. cxd5 {[%clk 0:00:45.1]} 31... Bxg4 {[%clk 0:01:15.3]} 32. Kh2
{[%clk 0:00:43.9]} 32... Rag8 {[%clk 0:01:08.2]} 33. Re2 {[%clk 0:00:24.1]}
33... Bd7 {[%clk 0:00:42.8]} 34. Be7 {[%clk 0:00:17.6]} 34... Bxa4 {[%clk
0:00:40.7]} 35. e6 {[%clk 0:00:16.7]} 35... fxe6 {[%clk 0:00:39.5]} 36. dxe6
{[%clk 0:00:17.6]} 36... Bb5 {[%clk 0:00:37.7]} 37. Ne5 {[%clk 0:00:12.5]} 37...
Bxe2 {[%clk 0:00:33.9]} 38. Rf7+ {[%clk 0:00:12.8]} 38... R6g7 {[%clk
0:00:33.3]} 39. Rxg7+ {[%clk 0:00:12.1]} 39... Rxg7 {[%clk 0:00:34.2]} 40. Bf6
{[%clk 0:00:12.5]} 40... Rg8 {[%clk 0:00:31.6]} 41. e7 {[%clk 0:00:12.9]} 41...
Bh5 {[%clk 0:00:29.1]} 42. Nc6 {[%clk 0:00:12.4]} 42... Bf3 {[%clk 0:00:22.8]}
43. Kh3 {[%clk 0:00:12.2]} 43... Bxc6 {[%clk 0:00:22.1]} 0-1

[Event "*** Titled Tuesday Blitz"]
[Site "Chess.com"]
[Date "2020.12.29"]
[Round "5"]
[White "djano"]
[Black "mat_kolosowski"]
[Result "0-1"]
[WhiteElo "2456"]
[BlackElo "2701"]
[TimeControl "180+1"]
[EndTime "10:54:47 PST"]
[Termination "mat_kolosowski won by resignation"]

1. d4 {[%clk 0:03:00.9]} 1... Nf6 {[%clk 0:02:57.8]} 2. Nf3 {[%clk 0:03:00.7]}
2... g6 {[%clk 0:02:58.1]} 3. c3 {[%clk 0:03:00]} 3... Bg7 {[%clk 0:02:58.1]} 4.
Bg5 {[%clk 0:03:00.2]} 4... d5 {[%clk 0:02:46.8]} 5. Nbd2 {[%clk 0:02:57.8]}
5... c6 {[%clk 0:02:43.6]} 6. e3 {[%clk 0:02:55.3]} 6... Bf5 {[%clk 0:02:43]} 7.
Be2 {[%clk 0:02:46.4]} 7... O-O {[%clk 0:02:42]} 8. O-O {[%clk 0:02:46.2]} 8...
Qb6 {[%clk 0:02:28.3]} 9. Qb3 {[%clk 0:02:45.9]} 9... Nbd7 {[%clk 0:02:27.4]}
10. h3 {[%clk 0:02:38.3]} 10... Rfe8 {[%clk 0:02:25.2]} 11. a4 {[%clk
0:02:33.6]} 11... e5 {[%clk 0:02:14.7]} 12. a5 {[%clk 0:02:27.5]} 12... Qxb3
{[%clk 0:02:01.3]} 13. Nxb3 {[%clk 0:02:28.4]} 13... Ne4 {[%clk 0:02:02]} 14.
Bh4 {[%clk 0:02:19.8]} 14... h6 {[%clk 0:02:00.8]} 15. Nfd2 {[%clk 0:01:56.1]}
15... Nxd2 {[%clk 0:01:50.8]} 16. Nxd2 {[%clk 0:01:57]} 16... exd4 {[%clk
0:01:51.4]} 17. cxd4 {[%clk 0:01:53.4]} 17... g5 {[%clk 0:01:41]} 18. Bg3 {[%clk
0:01:49.5]} 18... Bxd4 {[%clk 0:01:38.4]} 19. a6 {[%clk 0:01:42.5]} 19... b6
{[%clk 0:01:25]} 20. Bg4 {[%clk 0:01:05.3]} 20... Bxg4 {[%clk 0:01:18.7]} 21.
exd4 {[%clk 0:01:05.6]} 21... Be2 {[%clk 0:01:17.5]} 22. Rfc1 {[%clk 0:01:04.9]}
22... Rac8 {[%clk 0:01:14.7]} 23. Ra3 {[%clk 0:01:01.9]} 23... Bb5 {[%clk
0:01:12]} 24. b4 {[%clk 0:00:54.6]} 24... Re2 {[%clk 0:01:10.7]} 25. Nf3 {[%clk
0:00:54.8]} 25... f6 {[%clk 0:01:07.9]} 26. Nh2 {[%clk 0:00:48.5]} 26... h5
{[%clk 0:00:55.9]} 27. Nf1 {[%clk 0:00:42.1]} 27... h4 {[%clk 0:00:53.4]} 28.
Bh2 {[%clk 0:00:42.5]} 28... Rce8 {[%clk 0:00:54.1]} 29. Ne3 {[%clk 0:00:42.7]}
29... Rb2 {[%clk 0:00:48.6]} 30. Nf5 {[%clk 0:00:25.6]} 30... Ree2 {[%clk
0:00:43.8]} 31. Rf3 {[%clk 0:00:25.7]} 31... Rxb4 {[%clk 0:00:34]} 32. Bb8
{[%clk 0:00:24.7]} 32... Ra4 {[%clk 0:00:33.2]} 33. Bd6 {[%clk 0:00:18.8]} 33...
Kf7 {[%clk 0:00:31.2]} 34. Bc7 {[%clk 0:00:14.5]} 34... Bc4 {[%clk 0:00:25]} 35.
Nd6+ {[%clk 0:00:14.4]} 35... Ke6 {[%clk 0:00:25.5]} 36. Ne8 {[%clk 0:00:10.9]}
36... Rxa6 {[%clk 0:00:24.4]} 37. Bh2 {[%clk 0:00:09.5]} 37... Raa2 {[%clk
0:00:23.9]} 38. Nc7+ {[%clk 0:00:08.4]} 38... Kf7 {[%clk 0:00:24.4]} 39. Bd6
{[%clk 0:00:07.5]} 39... Kg6 {[%clk 0:00:24.1]} 0-1

[Event "*** Titled Tuesday Blitz"]
[Site "Chess.com"]
[Date "2020.12.29"]
[Round "5"]
[White "HanSchut"]
[Black "NodariousBIG"]
[Result "1/2-1/2"]
[WhiteElo "2262"]
[BlackElo "2652"]
[TimeControl "180+1"]
[EndTime "10:54:49 PST"]
[Termination "Game drawn by repetition"]

1. e4 {[%clk 0:03:00.9]} 1... e6 {[%clk 0:02:59.9]} 2. d4 {[%clk 0:02:57.2]}
2... d5 {[%clk 0:03:00.1]} 3. Nc3 {[%clk 0:02:54.6]} 3... Nf6 {[%clk 0:03:00.2]}
4. Bg5 {[%clk 0:02:51.8]} 4... Bb4 {[%clk 0:02:59.6]} 5. e5 {[%clk 0:02:48.5]}
5... h6 {[%clk 0:02:52.7]} 6. Bd2 {[%clk 0:02:48.1]} 6... Bxc3 {[%clk
0:02:51.7]} 7. bxc3 {[%clk 0:02:49]} 7... Ne4 {[%clk 0:02:52.3]} 8. Qg4 {[%clk
0:02:49]} 8... Kf8 {[%clk 0:02:52.4]} 9. Bd3 {[%clk 0:02:47.8]} 9... Nxd2 {[%clk
0:02:52.9]} 10. Kxd2 {[%clk 0:02:48.1]} 10... c5 {[%clk 0:02:53.6]} 11. h4
{[%clk 0:02:36.1]} 11... Qa5 {[%clk 0:02:41.3]} 12. Nf3 {[%clk 0:02:34.8]} 12...
c4 {[%clk 0:02:38.7]} 13. Be2 {[%clk 0:02:23.5]} 13... b5 {[%clk 0:02:33.8]} 14.
a3 {[%clk 0:01:59.8]} 14... Nd7 {[%clk 0:02:30.5]} 15. Qf4 {[%clk 0:01:37.9]}
15... Nb6 {[%clk 0:02:29.3]} 16. Rhb1 {[%clk 0:01:29.6]} 16... Na4 {[%clk
0:02:28.2]} 17. Rb4 {[%clk 0:01:29.2]} 17... Bd7 {[%clk 0:02:28.1]} 18. h5
{[%clk 0:01:28]} 18... Qd8 {[%clk 0:02:26.8]} 19. Nh4 {[%clk 0:01:25.2]} 19...
Ke8 {[%clk 0:02:13.4]} 20. Qg4 {[%clk 0:01:16.1]} 20... Qg5+ {[%clk 0:01:54.7]}
21. f4 {[%clk 0:01:05.8]} 21... Qe7 {[%clk 0:01:43.5]} 22. Qxg7 {[%clk
0:01:01.7]} 22... Qxh4 {[%clk 0:01:34.1]} 23. Qxh8+ {[%clk 0:00:59.8]} 23... Ke7
{[%clk 0:01:34.4]} 24. Qxa8 {[%clk 0:00:52.6]} 24... Qxf4+ {[%clk 0:01:33.9]}
25. Ke1 {[%clk 0:00:44]} 25... Nxc3 {[%clk 0:01:33.1]} 26. Rd1 {[%clk
0:00:33.4]} 26... Qg3+ {[%clk 0:01:28.5]} 27. Kf1 {[%clk 0:00:32.2]} 27... Ne4
{[%clk 0:01:28]} 28. Kg1 {[%clk 0:00:18.6]} 28... Qf2+ {[%clk 0:01:24.2]} 29.
Kh2 {[%clk 0:00:16.3]} 29... Qxe2 {[%clk 0:01:20.4]} 30. Rbb1 {[%clk 0:00:16.3]}
30... Qxc2 {[%clk 0:00:48.4]} 31. Qxa7 {[%clk 0:00:10.6]} 31... Qe2 {[%clk
0:00:42.6]} 32. Re1 {[%clk 0:00:09.4]} 32... Qxh5+ {[%clk 0:00:42.7]} 33. Kg1
{[%clk 0:00:09.8]} 33... Qh4 {[%clk 0:00:40.2]} 34. Rxe4 {[%clk 0:00:08.1]}
34... Qxe4 {[%clk 0:00:40.6]} 35. Qc5+ {[%clk 0:00:08.5]} 35... Ke8 {[%clk
0:00:40.6]} 36. Rf1 {[%clk 0:00:07.8]} 36... Qe3+ {[%clk 0:00:38.8]} 37. Kh1
{[%clk 0:00:07.5]} 37... c3 {[%clk 0:00:38.7]} 38. Qd6 {[%clk 0:00:05]} 38...
Qxd4 {[%clk 0:00:29.4]} 39. Qb8+ {[%clk 0:00:04.8]} 39... Ke7 {[%clk 0:00:29.4]}
40. Qd6+ {[%clk 0:00:05.5]} 40... Kd8 {[%clk 0:00:28.2]} 41. Qb8+ {[%clk
0:00:05.7]} 41... Bc8 {[%clk 0:00:27.8]} 42. Qd6+ {[%clk 0:00:05.5]} 42... Bd7
{[%clk 0:00:28.1]} 43. Qb8+ {[%clk 0:00:05.7]} 43... Ke7 {[%clk 0:00:28.4]} 44.
Qd6+ {[%clk 0:00:05.9]} 44... Ke8 {[%clk 0:00:29]} 45. Qb8+ {[%clk 0:00:02.6]}
45... Ke7 {[%clk 0:00:29]} 1/2-1/2

[Event "*** Titled Tuesday Blitz"]
[Site "Chess.com"]
[Date "2020.12.29"]
[Round "5"]
[White "SaraciNderim"]
[Black "jefferyx"]
[Result "0-1"]
[WhiteElo "2835"]
[BlackElo "2929"]
[TimeControl "180+1"]
[EndTime "10:54:50 PST"]
[Termination "jefferyx won on time"]

1. d4 {[%clk 0:03:00.9]} 1... Nf6 {[%clk 0:02:57.1]} 2. Nf3 {[%clk 0:03:00.6]}
2... d5 {[%clk 0:02:57]} 3. g3 {[%clk 0:03:00.4]} 3... b5 {[%clk 0:02:56.4]} 4.
Bg2 {[%clk 0:03:00.3]} 4... e6 {[%clk 0:02:57]} 5. O-O {[%clk 0:03:00.3]} 5...
Nbd7 {[%clk 0:02:57.6]} 6. Bg5 {[%clk 0:02:56.4]} 6... Bb7 {[%clk 0:02:52.8]} 7.
Nbd2 {[%clk 0:02:56.3]} 7... h6 {[%clk 0:02:51.8]} 8. Bxf6 {[%clk 0:02:55.1]}
8... Nxf6 {[%clk 0:02:52.7]} 9. Re1 {[%clk 0:02:54.7]} 9... c5 {[%clk
0:02:52.2]} 10. c3 {[%clk 0:02:52]} 10... Be7 {[%clk 0:02:46.8]} 11. Ne5 {[%clk
0:02:40.4]} 11... O-O {[%clk 0:02:46.4]} 12. Nd3 {[%clk 0:02:39.4]} 12... c4
{[%clk 0:02:44]} 13. Ne5 {[%clk 0:02:39]} 13... b4 {[%clk 0:02:36.9]} 14. cxb4
{[%clk 0:02:20.9]} 14... Bxb4 {[%clk 0:02:33.3]} 15. a3 {[%clk 0:02:13.1]} 15...
Ba5 {[%clk 0:02:31.8]} 16. Qc2 {[%clk 0:01:27.6]} 16... Rb8 {[%clk 0:02:27.2]}
17. Red1 {[%clk 0:01:21.3]} 17... Qd6 {[%clk 0:01:40.1]} 18. b3 {[%clk
0:01:01.2]} 18... c3 {[%clk 0:01:40.3]} 19. b4 {[%clk 0:00:56.5]} 19... cxd2
{[%clk 0:01:12.9]} 20. bxa5 {[%clk 0:00:56]} 20... Ne4 {[%clk 0:01:12.7]} 21.
Bxe4 {[%clk 0:00:52.1]} 21... dxe4 {[%clk 0:01:13.6]} 22. Qxd2 {[%clk
0:00:51.8]} 22... Bd5 {[%clk 0:01:11.5]} 23. Rdc1 {[%clk 0:00:47.3]} 23... Rfc8
{[%clk 0:01:06.9]} 24. Rxc8+ {[%clk 0:00:38.6]} 24... Rxc8 {[%clk 0:01:07.8]}
25. Rc1 {[%clk 0:00:38.2]} 25... Rb8 {[%clk 0:01:06.1]} 26. Qc3 {[%clk
0:00:32.2]} 26... f6 {[%clk 0:01:06]} 27. Nc4 {[%clk 0:00:28.6]} 27... Qa6
{[%clk 0:01:04.5]} 28. Ne3 {[%clk 0:00:26.7]} 28... Qxe2 {[%clk 0:00:35.8]} 29.
Nxd5 {[%clk 0:00:16.7]} 29... exd5 {[%clk 0:00:36.7]} 30. Qc7 {[%clk 0:00:16.6]}
30... Rb2 {[%clk 0:00:37]} 31. Qc8+ {[%clk 0:00:16.3]} 31... Kf7 {[%clk
0:00:37.7]} 32. Qf5 {[%clk 0:00:15.3]} 32... Rc2 {[%clk 0:00:27.1]} 33. Qxd5+
{[%clk 0:00:14.1]} 33... Kg6 {[%clk 0:00:27.7]} 34. Rxc2 {[%clk 0:00:12.9]}
34... Qxc2 {[%clk 0:00:28.6]} 35. Kg2 {[%clk 0:00:04.8]} 35... Qd3 {[%clk
0:00:28.1]} 36. Qe6 {[%clk 0:00:02.3]} 36... Qxd4 {[%clk 0:00:19.7]} 37. a6
{[%clk 0:00:01.5]} 37... Qd3 {[%clk 0:00:19.3]} 38. Qg4+ {[%clk 0:00:01.6]}
38... Kf7 {[%clk 0:00:19.7]} 0-1

[Event "*** Titled Tuesday Blitz"]
[Site "Chess.com"]
[Date "2020.12.29"]
[Round "5"]
[White "Twitch_ElhamBlitz05"]
[Black "FlamingPhoenix123"]
[Result "0-1"]
[WhiteElo "2872"]
[BlackElo "2600"]
[TimeControl "180+1"]
[EndTime "10:54:50 PST"]
[Termination "FlamingPhoenix123 won by resignation"]

1. e4 {[%clk 0:03:00.9]} 1... c5 {[%clk 0:02:56.3]} 2. Nf3 {[%clk 0:03:00.9]}
2... d6 {[%clk 0:02:51.8]} 3. d4 {[%clk 0:03:00.5]} 3... cxd4 {[%clk 0:02:52.7]}
4. Nxd4 {[%clk 0:03:01.4]} 4... Nf6 {[%clk 0:02:50.1]} 5. f3 {[%clk 0:03:01.8]}
5... e5 {[%clk 0:02:48.9]} 6. Nb3 {[%clk 0:03:01.8]} 6... d5 {[%clk 0:02:49.4]}
7. Bg5 {[%clk 0:03:01.2]} 7... Be6 {[%clk 0:02:49.8]} 8. Bxf6 {[%clk 0:03:00.9]}
8... gxf6 {[%clk 0:02:50.7]} 9. exd5 {[%clk 0:03:01.8]} 9... Qxd5 {[%clk
0:02:23.9]} 10. Qxd5 {[%clk 0:03:01.6]} 10... Bxd5 {[%clk 0:02:24.8]} 11. Nc3
{[%clk 0:03:02.5]} 11... Be6 {[%clk 0:02:19]} 12. O-O-O {[%clk 0:03:02.7]} 12...
Nc6 {[%clk 0:02:19]} 13. Bb5 {[%clk 0:03:00.3]} 13... Bh6+ {[%clk 0:02:08.4]}
14. Kb1 {[%clk 0:02:59.8]} 14... a6 {[%clk 0:02:09.2]} 15. Bxc6+ {[%clk
0:02:56.1]} 15... bxc6 {[%clk 0:02:10.1]} 16. Nc5 {[%clk 0:02:54.3]} 16... Ke7
{[%clk 0:02:06.7]} 17. N3e4 {[%clk 0:02:42.1]} 17... Rhd8 {[%clk 0:02:01.5]} 18.
Nxe6 {[%clk 0:02:40.6]} 18... fxe6 {[%clk 0:02:01.2]} 19. c3 {[%clk 0:02:38.5]}
19... f5 {[%clk 0:01:58.7]} 20. Nc5 {[%clk 0:02:38.5]} 20... Be3 {[%clk
0:01:54.5]} 21. Nd3 {[%clk 0:02:35.6]} 21... Kf6 {[%clk 0:01:49.2]} 22. Rhe1
{[%clk 0:02:31.8]} 22... f4 {[%clk 0:01:45.3]} 23. Kc2 {[%clk 0:02:24.4]} 23...
Rd5 {[%clk 0:01:40.3]} 24. Nb4 {[%clk 0:02:22.9]} 24... Rxd1 {[%clk 0:01:30.7]}
25. Rxd1 {[%clk 0:02:23.8]} 25... c5 {[%clk 0:01:31.6]} 26. Nc6 {[%clk
0:02:09.9]} 26... Rg8 {[%clk 0:01:24]} 27. g4 {[%clk 0:01:59.1]} 27... fxg3
{[%clk 0:01:24.9]} 28. hxg3 {[%clk 0:01:59.7]} 28... Rxg3 {[%clk 0:01:25.8]} 29.
Rd8 {[%clk 0:01:50.4]} 29... Rg2+ {[%clk 0:01:21.3]} 30. Kd3 {[%clk 0:01:50.1]}
30... Bf4 {[%clk 0:01:20.4]} 31. Rf8+ {[%clk 0:01:37.5]} 31... Kg7 {[%clk
0:01:18.8]} 32. Rb8 {[%clk 0:01:38.1]} 32... Kf6 {[%clk 0:01:16.9]} 33. a4
{[%clk 0:01:19.5]} 33... h5 {[%clk 0:01:16.8]} 34. b4 {[%clk 0:01:07.4]} 34...
cxb4 {[%clk 0:01:13.8]} 35. cxb4 {[%clk 0:01:08.3]} 35... h4 {[%clk 0:01:14.4]}
36. Rh8 {[%clk 0:01:08.2]} 36... Bg3 {[%clk 0:01:12.8]} 37. b5 {[%clk
0:00:54.4]} 37... axb5 {[%clk 0:01:13.7]} 38. axb5 {[%clk 0:00:55.3]} 38... Rb2
{[%clk 0:01:09.4]} 39. Kc4 {[%clk 0:00:52.5]} 39... Kg7 {[%clk 0:01:05.3]} 40.
Rh5 {[%clk 0:00:37.9]} 40... Kg6 {[%clk 0:01:04.6]} 41. Rh8 {[%clk 0:00:38.5]}
41... Kg7 {[%clk 0:01:04.7]} 42. Rd8 {[%clk 0:00:20.7]} 42... h3 {[%clk
0:01:02.1]} 43. Rd1 {[%clk 0:00:18.2]} 43... h2 {[%clk 0:01:01.2]} 44. Rh1
{[%clk 0:00:18.6]} 44... Rg2 {[%clk 0:00:52.2]} 45. b6 {[%clk 0:00:09.4]} 45...
Rg1 {[%clk 0:00:51.5]} 46. Rxh2 {[%clk 0:00:03.3]} 46... Bxh2 {[%clk 0:00:52.4]}
47. b7 {[%clk 0:00:04]} 47... e4 {[%clk 0:00:53]} 48. fxe4 {[%clk 0:00:04.2]}
48... Rb1 {[%clk 0:00:51.9]} 49. Nb4 {[%clk 0:00:01.5]} 49... Bd6 {[%clk
0:00:52.4]} 50. e5 {[%clk 0:00:01]} 50... Rxb4+ {[%clk 0:00:51.4]} 51. Kc3
{[%clk 0:00:01.6]} 51... Rxb7 {[%clk 0:00:51.9]} 52. exd6 {[%clk 0:00:02.5]}
52... Rd7 {[%clk 0:00:52.5]} 53. Kd4 {[%clk 0:00:02.5]} 53... Rxd6+ {[%clk
0:00:53.4]} 54. Ke5 {[%clk 0:00:03.4]} 54... Rd8 {[%clk 0:00:53.4]} 0-1

[Event "*** Titled Tuesday Blitz"]
[Site "Chess.com"]
[Date "2020.12.29"]
[Round "5"]
[White "Schack-Hugo"]
[Black "Nara_Kh"]
[Result "0-1"]
[WhiteElo "2167"]
[BlackElo "2355"]
[TimeControl "180+1"]
[EndTime "10:54:50 PST"]
[Termination "Nara_Kh won on time"]

1. e4 {[%clk 0:03:00.9]} 1... c5 {[%clk 0:02:59.1]} 2. Nf3 {[%clk 0:03:00.7]}
2... d6 {[%clk 0:02:59]} 3. d4 {[%clk 0:03:00.9]} 3... Nf6 {[%clk 0:02:59]} 4.
Nc3 {[%clk 0:02:57.6]} 4... cxd4 {[%clk 0:02:59]} 5. Nxd4 {[%clk 0:02:58.5]}
5... a6 {[%clk 0:02:59.1]} 6. Bg5 {[%clk 0:02:57.9]} 6... Nbd7 {[%clk
0:02:58.8]} 7. f4 {[%clk 0:02:57.9]} 7... Qc7 {[%clk 0:02:54.3]} 8. Qf3 {[%clk
0:02:57.2]} 8... g6 {[%clk 0:02:51.4]} 9. g4 {[%clk 0:02:49.1]} 9... Bg7 {[%clk
0:02:50.5]} 10. O-O-O {[%clk 0:02:48.3]} 10... b5 {[%clk 0:02:48.9]} 11. Bxf6
{[%clk 0:02:26.5]} 11... Nxf6 {[%clk 0:02:45.3]} 12. g5 {[%clk 0:02:07.4]} 12...
Nd7 {[%clk 0:02:36.3]} 13. h4 {[%clk 0:01:55.2]} 13... Bb7 {[%clk 0:02:28.9]}
14. h5 {[%clk 0:01:48.6]} 14... Rc8 {[%clk 0:02:08.4]} 15. h6 {[%clk 0:01:35.9]}
15... Bxd4 {[%clk 0:02:03.7]} 16. Rxd4 {[%clk 0:01:35.7]} 16... Nc5 {[%clk
0:01:59.9]} 17. Bh3 {[%clk 0:01:23.2]} 17... Rd8 {[%clk 0:01:36.5]} 18. Nd5
{[%clk 0:01:05.8]} 18... Qa5 {[%clk 0:01:20.4]} 19. Kb1 {[%clk 0:00:33.4]} 19...
Bxd5 {[%clk 0:01:08]} 20. exd5 {[%clk 0:00:16.1]} 20... O-O {[%clk 0:00:58.9]}
21. b4 {[%clk 0:00:14.3]} 21... Qa4 {[%clk 0:00:59]} 22. Qc3 {[%clk 0:00:12.7]}
22... Nd7 {[%clk 0:00:53.2]} 23. Bxd7 {[%clk 0:00:08.7]} 23... Rxd7 {[%clk
0:00:53.2]} 24. Qb2 {[%clk 0:00:08.2]} 24... Rc7 {[%clk 0:00:50.4]} 25. Rh3
{[%clk 0:00:07.5]} 25... Rfc8 {[%clk 0:00:49]} 26. Rd2 {[%clk 0:00:07.4]} 26...
Rc4 {[%clk 0:00:46.4]} 27. Rb3 {[%clk 0:00:03.5]} 27... Rxf4 {[%clk 0:00:43.9]}
28. a3 {[%clk 0:00:02.3]} 28... Rg4 {[%clk 0:00:18.2]} 29. Ka2 {[%clk
0:00:02.2]} 29... Rxg5 {[%clk 0:00:18]} 30. Rc3 {[%clk 0:00:02.2]} 30... Rc4
{[%clk 0:00:15.6]} 31. Rxc4 {[%clk 0:00:02]} 31... bxc4 {[%clk 0:00:16.5]} 32.
Qd4 {[%clk 0:00:01.6]} 32... f6 {[%clk 0:00:06.4]} 33. Qxc4 {[%clk 0:00:01.1]}
33... Kf7 {[%clk 0:00:06.8]} 0-1